Cogmind - Beta 15 @@@ ROGUE MODE // 2025.06.28 @ 19:02:34 Player: Btuck Result: Destroyed by Y-45 Defender with Beam Rifle Performance ------------- Evolutions (2) 1000 Regions Visited (3) 600 Robots Destroyed (50) 250 Value Destroyed (1131) 1131 Prototype IDs (3) 60 Alien Tech Used (0) 0 Bonus (0) 0 TOTAL SCORE: 3041 Bonus ------- None Cogmind --------- Core Integrity 0/550 Matter 300/300 Energy 100/100 System Corruption 1% Temperature Cool (9) Movement Core (50) Location -8/Materials Parts ------- > --- POWER (1) -------- (None) > --- PROPULSION (4) --- (None) > --- UTILITY (3) ------ (None) > --- WEAPON (3) ------- (None) > --- INVENTORY (5) ---- Cooled Ion Engine Seismic Detector Light Assault Rifle Scythe Peak State ------------ > --- POWER ------------ Cooled Ion Engine > --- PROPULSION ------- Airjet Airjet Airjet > --- UTILITY ---------- Heat Sink Medium Storage Unit > --- WEAPON ----------- Field Laser Field Laser Field Laser > --- INVENTORY -------- Cooled Ion Engine Improved Hover Unit Improved Hover Unit Seismic Detector Light Assault Rifle Scythe [Rating: 24] Favorites ----------- Power Ion Engine Engine Ion Engine Propulsion Aluminum Leg Leg Aluminum Leg Hover Unit Airjet Utility Medium Storage Unit Device Seismic Detector Storage Medium Storage Unit Protection Light Armor Plating Weapon Assault Rifle Energy Gun Field Laser Ballistic Gun Assault Rifle Slashing Weapon Scythe Build | -11 -10 -9 -8 ------- Run | Yrd Mat Mat Mat Slots Evolved 4 | . . 2 2 Power . | . . . . Propulsion 2 | . . 1 1 Utility 1 | . . . 1 Weapon 1 | . . 1 . Parts Attached 33 | 7 6 19 1 Power 3 | 1 1 1 . Engine 3 | 1 1 1 . Core . | . . . . Reactor . | . . . . Propulsion 11 | 2 2 6 1 Treads . | . . . . Leg 5 | 2 2 1 . Wheel . | . . . . Hover 6 | . . 5 1 Flight . | . . . . Utility 7 | 2 1 4 . Device 3 | 1 . 2 . Storage 2 | 1 1 . . Processor . | . . . . Hackware . | . . . . Protection 2 | . . 2 . Artifact . | . . . . Weapon 12 | 2 2 8 . Energy Gun 6 | . . 6 . Energy Cannon . | . . . . Ballistic Gun 5 | 2 2 1 . Ballistic Cannon . | . . . . Launcher . | . . . . Special Weapon . | . . . . Impact Weapon . | . . . . Slashing Weapon 1 | . . 1 . Piercing Weapon . | . . . . Special Melee Weapon . | . . . . Unidentified Prototypes . | . . . . Parts Lost 14 | . 2 2 10 Power 2 | . 1 . 1 Propulsion 5 | . . 1 4 Utility 2 | . . . 2 Weapon 5 | . 1 1 3 Highest Loss Streak 9 | . 1 1 9 To Critical Strikes . | . . . . Average Backups 5 | 1 3 7 4 Power 1 | . 1 1 1 Propulsion 1 | . . 2 . Utility . | . . 1 1 Weapon 1 | . . 2 2 Tool/Special . | . . . . Unused Backups 10 | . 1 8 1 Power 6 | . 1 4 1 Propulsion 2 | . . 2 . Utility . | . . . . Weapon 2 | . . 2 . Tool/Special . | . . . . Average Slot Usage (%) 90 | . 90 96 53 Engine 11 | . 13 11 5 Leg 19 | . 27 15 . Hover 9 | . . 15 19 Device 5 | . 4 7 5 Storage 13 | . 16 11 8 Protection 1 | . . 3 . Energy Gun 9 | . . 18 13 Ballistic Gun 18 | . 27 14 . Peak Build Rating 24 | 7 7 24 24 Average Rating 11 | 6 6 16 12 On Entrance 9 | . 7 7 23 Naked Turns 18 | . . . 18 Heaviest Build 28 | 14 23 28 28 Greatest Support 30 | 20 20 30 30 Greatest Overweight (x) 7 | . 6 3 7 Average Overweight (x) . | . . . . Largest Inventory Capacity 10 | 8 10 10 10 Average Capacity 9 | 7 8 10 9 Most Carried 10 | 2 10 10 4 Average Carried 5 | 1 3 7 4 Final Capacity 10 | 8 10 10 5 Final Carried 10 | 2 10 5 4 Class Distribution -------------------- 44% | Mutant 22% | Gunner 14% | Scavenger-Tank 12% | Scavenger-Mutant 6% | Scavenger-Gunner Dominant Class ---------------- Mutant | -10/Materials Gunner | -9/Materials Mutant | -8/Materials Resources | -11 -10 -9 -8 ----------- Run | Yrd Mat Mat Mat Matter Collected 1237 | 347 476 414 . Remotely . | . . . . Salvage Created 1828 | 170 681 927 50 Parts 123 | 12 52 56 3 Haulers Intercepted 4 | . 2 2 . Recyclers Shooed 4 | . 3 1 . Parts Field Recycled . | . . . . Retrieved Matter . | . . . . Parts Self-Destructed . | . . . . Prevented . | . . . . Kills | -11 -10 -9 -8 ------- Run | Yrd Mat Mat Mat Combat Hostiles Destroyed 32 | . 14 15 3 Guns 31 | . 14 14 3 Classes Destroyed 10 | 3 4 3 . Worker 2 | 1 1 . . Tunneler 5 | 3 . 2 . Hauler 4 | . 2 2 . Recycler 3 | 1 1 1 . Watcher 4 | . 1 3 . Swarmer 7 | . 4 . 3 Grunt 19 | . 10 9 . Brawler 1 | . . 1 . Duelist 2 | . . 2 . Sentry 3 | . . 3 . Best Kill Streak 4 | 3 4 3 3 Combat Bots Only 3 | . 3 3 3 Max Kills in Single Turn 2 | 1 1 1 2 Gunslinging 1 | . . . 1 Exploded . | . . . . Melee . | . . . . Uniques/NPCs Destroyed . | . . . . Combat | -11 -10 -9 -8 -------- Run | Yrd Mat Mat Mat Hostile Shots Fired 249 | . 86 57 106 Missed 68 | . 29 11 28 Hits 181 | . 57 46 78 Melee 11 | . . 11 . Projectile 170 | . 57 35 78 Critical Strikes 4 | . . 4 . Damage Taken 2439 | . 585 811 1043 Core 769 | . 76 142 551 Absorbed by Shields . | . . . . Core Remaining (%) 77 | 100 69 64 . Volleys Fired 149 | 20 74 49 6 Largest 3 | 2 2 3 3 Hottest 189 | 40 40 189 189 Shots Fired 343 | 37 145 145 16 Gun 343 | 37 145 145 16 Cannon . | . . . . Launcher . | . . . . Special . | . . . . Kinetic 234 | 37 145 52 . Thermal 109 | . . 93 16 Explosive . | . . . . Electromagnetic . | . . . . Robot Hit Streak 33 | 9 15 33 3 Robot Miss Streak 9 | 3 6 3 9 Penetration Max . | . . . . Secondary Targets 7 | . 4 1 2 Max Gunslinging Chain 2 | . 1 1 2 Shots Hit Robots 206 | 21 84 96 5 Core Hits 84 | 8 39 34 3 Critical Kills . | . . . . Critical Parts Destroyed 2 | . 1 1 . Critical Strikes 6 | . 1 5 . Burn 4 | . . 4 . Destroy 2 | . 1 1 . Melee Attacks 3 | . . 3 . Impact . | . . . . Slashing 3 | . . 3 . Piercing . | . . . . Sneak Attacks 1 | . . 1 . Combat Hostiles . | . . . . Follow-up Attacks . | . . . . Damage Inflicted 2776 | 245 900 1503 128 Guns 2691 | 245 896 1425 125 Cannons . | . . . . Explosions . | . . . . Melee 60 | . . 60 . Ramming 25 | . 4 18 3 Kinetic 1494 | 245 896 353 . Thermal 1197 | . . 1072 125 Explosive . | . . . . Electromagnetic . | . . . . Impact . | . . . . Slashing 60 | . . 60 . Piercing . | . . . . Highest Corruption 1 | . 1 . 1 Average Corruption 1 | . 1 . 1 Corruption Purged . | . . . . Corruption Blocked . | . . . . Effects 5 | . 3 . 2 Matter Fused 3 | . 1 . 2 Data Loss (minor) 1 | . 1 . . Weapon Failures 1 | . 1 . . Overload Shots . | . . . . Overflow Damage . | . . . . Projectiles . | . . . . Explosions . | . . . . Melee . | . . . . Knockbacks . | . . . . Impact . | . . . . Kinetic . | . . . . Secondary . | . . . . Self-Inflicted Damage 1 | . . 1 . Shots . | . . . . Rammed 6 | . . 2 4 Targets Rammed 12 | . 2 6 4 Kicked 6 | . 2 4 . Crushed . | . . . . Highest Temperature 480 | . 15 480 314 Average Temperature 114 | . 6 120 188 Received Heat Transfer 687 | . 222 186 279 Effects 5 | . . 3 2 Interference 3 | . . 1 2 Matter Decay 2 | . . 2 . Siege Activations . | . . . . Martial Activations . | . . . . Shielding Activations . | . . . . Robots Disrupted . | . . . . Combat Hostiles . | . . . . Robots Corrupted . | . . . . Combat Hostiles . | . . . . Parts Fried . | . . . . Impact Corruptions . | . . . . Robots Melted 1 | . . 1 . Combat Hostiles 1 | . . 1 . Parts Melted 7 | . . 7 . Heat Transferred 2874 | . . 2615 259 Parts Sabotaged . | . . . . Parts Stolen . | . . . . Parts Stripped . | . . . . Power Chain Reactions . | . . . . Alert | -11 -10 -9 -8 ------- Run | Yrd Mat Mat Mat Maximum Alert Level 1 | . 1 1 . Low Security (%) 96 | 100 92 99 100 Level 1 3 | . 7 . . Level 2 . | . . . . Level 3 . | . . . . Level 4 . | . . . . Level 5 . | . . . . High Security . | . . . . Max Security . | . . . . Peak Influence 219 | 5 219 205 106 Initial 86 | . 3 81 86 Average 71 | . 95 65 43 Influence Increases 1167 | 25 525 547 70 Destroy 0b10 Robot/C 640 | . 280 300 60 Destroy 0b10 Robot/NC 90 | 25 25 40 . Destroy Leader 196 | . 76 110 10 Successful Hack 51 | . 23 28 . Select Force Hacks 30 | . 30 . . Disable Machine 15 | . . 15 . Destroy Structure 10 | . 1 9 . Lose Combat Pursuer 135 | . 90 45 . Influence Decreases 1167 | 20 337 535 275 Entered New Map 233 | . 2 112 119 Time Decay 794 | 20 315 393 66 Lost Part 130 | . 20 20 90 Lost Ally 10 | . . 10 . Squads Dispatched 9 | . 5 4 . Investigation 6 | . 3 3 . Extermination . | . . . . Reinforcement 3 | . 2 1 . Assault . | . . . . Garrison . | . . . . Intercept . | . . . . Searches Triggered . | . . . . Construction Impeded . | . . . . Haulers Reinforced . | . . . . Active Scanning Responses . | . . . . Cargo Convoy Interrupts . | . . . . Stealth | -11 -10 -9 -8 --------- Run | Yrd Mat Mat Mat Distress Signals 3 | . 1 1 1 Communications Jammed . | . . . . Distress Signals . | . . . . Times Spotted 61 | . 28 26 7 Peak Tracking Total 7 | . 5 4 7 Tactical Retreats 7 | . 4 3 . Traps | -11 -10 -9 -8 ------- Run | Yrd Mat Mat Mat Traps Triggered 7 | . 6 . 1 Indirectly . | . . . . Trap Hack Attempts . | . . . . Triggered . | . . . . Disarmed . | . . . . Reprogrammed . | . . . . Reused . | . . . . Traps Extracted . | . . . . Installed . | . . . . Triggered . | . . . . Machines | -11 -10 -9 -8 ---------- Run | Yrd Mat Mat Mat Machines Disabled 1 | . . 1 . Max in Single Turn 1 | . . 1 . Machines Repaired . | . . . . Machines Dismantled . | . . . . Machines Sabotaged . | . . . . Overloaded Fab Kills . | . . . . Hacking | -11 -10 -9 -8 --------- Run | Yrd Mat Mat Mat Machines Accessed 12 | . 7 5 . Terminals 10 | . 6 4 . Fabricators . | . . . . Repair Stations . | . . . . Recycling Units 1 | . 1 . . Scanalyzers 1 | . . 1 . Garrison Access . | . . . . Total Hacks 31 | . 18 13 . Successful 16 | . 9 7 . Failed 15 | . 9 6 . Catastrophic 1 | . 1 . . Database Lockouts . | . . . . Manual 27 | . 15 12 . Terminals 27 | . 17 10 . Fabricators . | . . . . Repair Stations . | . . . . Recycling Units 1 | . 1 . . Scanalyzers 3 | . . 3 . Garrison Access . | . . . . Terminal Hacks 6 | . 4 2 . Robot Analysis 3 | . 2 1 . Prototype ID Bank 1 | . 1 . . Level Access Points 1 | . . 1 . Locate Traps 1 | . 1 . . Fabricator Hacks . | . . . . Repair Station Hacks . | . . . . Recycling Unit Hacks . | . . . . Scanalyzer 1 | . . 1 . Insert Component 1 | . . 1 . Garrison Access Hacks . | . . . . Unauthorized Hacks 9 | . 5 4 . Terminals 8 | . 4 4 . Assimilate 1 | . . 1 . Botnet 7 | . 4 3 . Fabricators . | . . . . Repair Stations . | . . . . Recycling Units 1 | . 1 . . Tunnel 1 | . 1 . . Scanalyzers . | . . . . Garrison Access . | . . . . Data Cores Recovered . | . . . . Used . | . . . . Hacking Detections 11 | . 6 5 . Full Trace Events 6 | . 3 3 . Feedback Events . | . . . . Feedback Blocked . | . . . . Robot Schematics Acquired . | . . . . Robots Built . | . . . . Authchips . | . . . . Time . | . . . . Total Robot Build Rating . | . . . . Part Schematics Acquired . | . . . . Parts Built . | . . . . Authchips . | . . . . Time . | . . . . Total Part Build Rating . | . . . . Parts Repaired . | . . . . Time . | . . . . Parts Recycled . | . . . . Recycled Matter . | . . . . Retrieved Matter . | . . . . Retrieved Components . | . . . . Parts Scanalyzed 1 | . . 1 . Part Schematics Acquired . | . . . . Parts Damaged 1 | . . 1 . Bothacking | -11 -10 -9 -8 ------------ Run | Yrd Mat Mat Mat Used RIF Installer . | . . . . Robots Hacked . | . . . . Non-combat . | . . . . Combat . | . . . . Robot Hacks Applied . | . . . . Relay Couplers Released . | . . . . Fabnet Peak Effective % . | . . . . Robots Rewired . | . . . . Allies Hacked . | . . . . Hacks Repelled . | . . . . Allies | -11 -10 -9 -8 -------- Run | Yrd Mat Mat Mat Total Allies 1 | . . 1 . Largest Group 1 | . . 1 . Highest-Rated Group 10 | . . 10 . Highest-Rated Ally 10 | . . 10 . Total Orders . | . . . . Ally Attacks . | . . . . Total Damage . | . . . . Kills . | . . . . Allies Corrupted . | . . . . Allies Melted . | . . . . Intel | -11 -10 -9 -8 ------- Run | Yrd Mat Mat Mat Active Infowar (turns) 700 | 126 334 240 . Seismic 700 | 126 334 240 . Robot Analysis Total 3 | . 2 1 . Derelict Logs Recovered . | . . . . Drone Launches . | . . . . Drone Recoveries . | . . . . Exploration | -11 -10 -9 -8 ------------- Run | Yrd Mat Mat Mat Turns Passed 2473 | 172 994 1116 191 Spaces Moved 1449 | 91 562 638 158 Core 16 | 3 5 . 8 Treads . | . . . . Legs 957 | 88 557 312 . Wheels . | . . . . Hover 476 | . . 326 150 Flight . | . . . . Fastest Speed 48 | 50 100 52 48 Average Speed 111 | 117 128 107 62 Slowest Speed 400 | 120 350 240 400 Overloaded Moves . | . . . . Propulsion Burnouts . | . . . . Robots Hopped . | . . . . Potential Cave-ins . | . . . . Cave-ins Triggered . | . . . . Exploration Rate (%) 38 | 5 87 46 17 Regions Visited 3 Branch Regions . Pre-discovered Areas 1 | . 1 . . Known Exits Taken 1 | . . 1 . Unknown Exits Taken 2 | 1 1 . . Scrap Searched . | . . . . Spaces Dug 2 | . . 2 . Terrain Destroyed 2 | . . 2 . Melee 2 | . . 2 . Projectile . | . . . . AOE . | . . . . Terrain Rammed . | . . . . Walls Destroyed . | . . . . Machines Disabled . | . . . . Actions | -11 -10 -9 -8 --------- Run | Yrd Mat Mat Mat Total 2008 | 119 696 959 234 Wait 299 | . 26 208 65 Move 1446 | 90 561 637 158 Hop . | . . . . Pick Up 26 | 2 9 15 . Fast Attach 27 | 7 15 5 . Attach 10 | . 1 8 1 Detach 2 | . 1 1 . Swap 12 | . 3 9 . Drop 22 | . 4 18 . Fire 149 | 20 74 49 6 Melee 3 | . . 3 . Ram 6 | . . 2 4 Kick 6 | . 2 4 . Crush . | . . . . Escape Stasis . | . . . . Rewire . | . . . . Trap . | . . . . Miscellaneous . | . . . . Route ------- -11/Scrapyard -10/Materials (discovered 3 exits: *Mat x2 / [*Min]) -9/Materials (discovered 3 exits: *Mat x3) -8/Materials History --------- Turn | Location | Event 4 | -11/Scrapyard | Discovered new exit (range 15) 173 | -11/Scrapyard | Entered Materials 302 | -10/Materials | Discovered new exit (range 7) 307 | -10/Materials | Build established: Mutant 471 | -10/Materials | Discovered new exit (range 15) 942 | -10/Materials | Discovered new exit (range 13) 1167 | -10/Materials | Entered another Materials area 1167 | -9/Materials | Evolved 2 slots: Propulsion x1, Weapon x1 2209 | -9/Materials | Identified exit to Materials 2225 | -9/Materials | Build established: Gunner 2283 | -9/Materials | Entered another Materials area 2283 | -8/Materials | Evolved 2 slots: Propulsion x1, Utility x1 2438 | -8/Materials | Lost 9 parts (1p4n1u3w) 2454 | -8/Materials | Core integrity fell below 50% 2467 | -8/Materials | Core integrity fell below 20% 2474 | -8/Materials | Destroyed by Y-45 Defender with Beam Rifle Last Messages --------------- 02381_ K-01 Serf collects debris. 02381_ R-06 Scavenger collects Lgt. Assault Rifle. 02382_ Imp. Hover Unit destroyed. 02382_ T-07 Excavator is excavating. 02382_ U-05 Engineer builds a Wall. 02385_ K-01 Serf collects debris. 02386_ Imp. Hover Unit destroyed. 02386_ U-05 Engineer builds a Wall. 02389_ K-01 Serf collects debris. 02391_ System corrupted: Matter fused (-7). 02391_ Field Laser destroyed. 02400_ K-01 Serf cleans the Repair Station. 02401_ Heat Sink destroyed. 02407_ Cld. Ion Engine destroyed. 02437_ U-05 Engineer lays Concrete. 02442_ Slammed into Y-45 Defender. 02447_ Material Processor disabled. 02448_ Slammed into Y-45 Defender. 02456_ Med. Storage Unit destroyed. Map ----- +----------------------------------------------------+ | | | | | | | | | | | | | | | ????????????????????####??##?????????????????????? | | ???????????????????# #????????????????????? | | ???????????????????# """ #????????????????????? | | ???????????????????# """ #????????????????????? | | ???????????????????# """ #????????????????????? | | ???????????????????# #????????????????????? | | ???????????????????# """ #????????????????????? | | ???????????????????# """ #????????????????????? | | ???????????????????# """ #????????????????????? | | ???????????????????# #????????????????????? | | ???????????????????#####+#####???????????######### | | ?????????############?# #???????????# # | | ?????????# # #?########### # | | ?????????# # ### """" # # " | | ?????????# + + ""S"" # + " | | ?????????# # # "" "" # # " | | ?????????# # # # # ! | | ?????????############## + """ """ # ##### | | ????????????# # @ ### """ """ # #???? | | ????????????# ! # % #?# """ """ # #???? | | ????????????# #Y Y #?# # #???? | | ????????????# "" %+% #########+### #???? | | ????????????# """"" #k #???? | | ??????????????""""" # #???? | | ??????????????""""" # #???? | | ???????????????""" # """ """ #######???? | | ???????????????######## """ """ #?????????? | | ????????????????# # """ """ #?????????? | | ????????????????# + #?????????? | | ????????????????# # #?????????? | | ????????????????####### """ #?????????? | | ?????????????????????## """ #?????????? | | ?????????????????????# """ """#?????????? | | ?????????????????????# R"#?????????? | | ?????????????????????# """#?????????? | | ?????????????????????# #?????????? | | ?????????????????????# #?????????? | | ?????????????????????# ##############?????????? | | ?????????????????????# #??????????????????????? | | ?????????????????????# #??????????????????????? | | ?????????????????????# #??????????????????????? | | ???????????????????? #??????????????????????? | | ?????????????????? % #??????????????????????? | +----------------------------------------------------+ Best States ------------- Heat Dissipation 41 Energy Generation 14 Energy Capacity 280 Matter Stores 300 Matter Capacity 300 Sight Range 16 Terrain Scan Density 10 Armor Coverage 150 Core Shielding 20 Evasion (%) 55 Item Schematics ----------------- None Robot Schematics ------------------ None Fabricated ------------ Nothing Repaired ---------- Nothing Alien Tech Used ----------------- None Achievements -------------- Safety First Challenges ------------ None Game ------ Seed AssembledIntegratedWell Manual? 0 Play Time 00:24:51 Cumulative 77.8 hours Start 2025.06.28 @ 18:27:08 End 2025.06.28 @ 19:02:34 Sessions 1 Manual Loads 0 Difficulty Rogue Special Mode None Game No. 106 Rogue 106 Adventurer 0 Explorer 0 Win Type - Total 1 Types 1/0/0/0/0/0/0/0/0/0 Lore% 40 Gallery% 42 Achievement% 40 Wizard Run 0 Options --------- Layout 2 ASCII 0 Keyboard 1 Movement Numpad Keybinds 0 Fullscreen 1 Font 32/Swanston Map View 50x44 Zoom Use 0% Tactical HUD 1 Map Filters NONE Filters NONE Steam 1 RUN: 0eb42f0d-c2a7-4632-b3d3-80d7e32c9875